fUST/lending_fUST_20250523
["ID","MTS","AMOUNT","RATE_DAILY","PERIOD"]
[362074574,1747975845228,-430.0,0.00018082,2]
[362074575,1747975845237,-430.0,0.00018082,2]
[362074576,1747975845247,-624.28,0.00018082,2]
[362074577,1747975845257,-1415.32,0.00018082,2]
[362074578,1747975845266,-430.0,0.00018084,2]
[362074579,1747975845275,-430.0,0.00018084,2]
[362074580,1747975845285,-430.0,0.00018084,2]
[362074581,1747975845294,-430.0,0.00018084,2]
[362074582,1747975845303,-430.0,0.00018084,2]
[362074583,1747975845314,-430.0,0.00018084,2]
[362074584,1747975845324,-430.0,0.00018084,2]
[362074585,1747975845334,-430.0,0.00018084,2]
[362074586,1747975845343,-430.0,0.00018084,2]
[362074587,1747975845353,-430.0,0.00018084,2]
[362074588,1747975845363,-1656.93,0.00018084,2]
[362074589,1747975845373,-430.0,0.00018084,2]
[362074590,1747975845382,-430.0,0.00018084,2]
[362074591,1747975845393,-430.0,0.00018084,2]
[362074592,1747975845402,-430.0,0.00018084,2]
[362074593,1747975845411,-430.0,0.00018084,2]
[362074594,1747975845421,-430.0,0.00018084,2]
[362074595,1747975845431,-430.0,0.00018084,2]
[362074596,1747975845440,-175.13771167,0.00018085,2]
[362074597,1747975845450,-441.8864216,0.00018085,2]
[362074598,1747975845461,-430.0,0.00018085,2]
[362074599,1747975845470,-430.0,0.00018085,2]
[362074600,1747975845480,-430.0,0.00018085,2]
[362074601,1747975845490,-430.0,0.00018085,2]
[362074602,1747975845500,-430.0,0.00018085,2]
[362074603,1747975845511,-430.0,0.00018085,2]
[362074604,1747975845520,-675.85,0.00018085,2]
[362074605,1747975845530,-430.0,0.00018085,2]
[362074607,1747975845540,-478.41,0.00018085,2]
[362074609,1747975845550,-430.0,0.00018085,2]
[362074610,1747975845559,-1032.14,0.00018085,2]
[362074611,1747975845571,-430.0,0.00018085,2]
[362074612,1747975845581,-430.0,0.00018085,2]
[362074613,1747975845591,-430.0,0.00018085,2]
[362074615,1747975845601,-430.0,0.00018085,2]
[362074617,1747975845610,-430.0,0.00018085,2]
[362074618,1747975845620,-430.0,0.00018085,2]
[362074619,1747975845630,-616.62,0.00018085,2]
[362074620,1747975845639,-430.0,0.00018085,2]
[362074621,1747975845649,-430.0,0.00018085,2]
[362074622,1747975845659,-430.0,0.00018085,2]
[362074623,1747975845670,-430.0,0.00018085,2]
[362074624,1747975845679,-648.92,0.00018085,2]
[362074625,1747975845690,-528.37,0.00018085,2]
[362074626,1747975845700,-430.0,0.00018085,2]
[362074627,1747975845710,-430.0,0.00018085,2]
[362074628,1747975845720,-569.32,0.00018085,2]
[362074629,1747975845730,-752.58,0.00018085,2]
[362074630,1747975845740,-1013.01,0.00018085,2]
[362074631,1747975845751,-430.0,0.00018085,2]
[362074632,1747975845765,-430.0,0.00018085,2]
[362074634,1747975845775,-430.0,0.00018085,2]
[362074635,1747975845785,-507.04,0.00018085,2]
[362074637,1747975845795,-430.0,0.00018085,2]
[362074639,1747975845806,-430.0,0.00018085,2]
[362074641,1747975845824,-1664.11314,0.00018095,2]
[362074643,1747975845834,-1664.11314,0.00018095,2]
[362074645,1747975845849,-430.0,0.00018095,2]
[362074647,1747975845860,-151.0,0.00018095,2]
[362074648,1747975845869,-188.562393,0.00018095,2]
[362074650,1747975845879,-188.562393,0.00018095,2]
[362074652,1747975845889,-239.05,0.00018095,2]
[362074654,1747975845898,-430.0,0.00018095,2]
[362074655,1747975845909,-289.32739691,0.00018095,2]
[362074656,1747975845919,-430.0,0.00018095,2]
[362074657,1747975845928,-500.0,0.00018095,2]
[362074658,1747975845938,-228.294513,0.00018095,2]
[362074660,1747975845948,-228.294513,0.00018095,2]
[362074662,1747975845958,-430.0,0.00018095,2]
[362074663,1747975845968,-1226.370843,0.00018095,2]
[362074664,1747975845978,-1226.370843,0.00018095,2]
[362074665,1747975845988,-430.0,0.00018095,2]
[362074666,1747975845997,-4333.335755,0.00018095,2]
[362074667,1747975846018,-4333.335755,0.00018095,2]
[362074668,1747975846035,-151.0,0.00018095,2]
[362074669,1747975846049,-645.861742,0.00018095,2]
[362074670,1747975846066,-645.861742,0.00018095,2]
[362074671,1747975846082,-151.0,0.000181,2]
[362074672,1747975846098,-399.63013437,0.00018196,2]
[362074674,1747975846114,-500.0,0.00018206,2]
[362074675,1747975846131,-7379.32,0.00018248,3]
[362074676,1747975846148,-3689.66,0.00018248,3]
[362074677,1747975846163,-1844.82,0.00018248,3]
[362074679,1747975846178,-922.42,0.00018248,3]
[362074680,1747975846192,-461.2,0.00018248,3]
[362074681,1747975846208,-166.46594649,0.00018259,2]
[362074683,1747975846224,-430.0,0.00018267,2]
[362074684,1747975846237,-1092.0,0.00018267,2]
[362074685,1747975846250,-442.96961639,0.00018267,2]
[362074686,1747975846264,-430.0,0.00018267,2]
[362074687,1747975846280,-2139.84,0.00018267,2]
[362074688,1747975846295,-430.0,0.00018267,2]
[362074689,1747975846310,-430.0,0.00018267,2]
[362074690,1747975846330,-430.0,0.00018267,2]
[362074691,1747975846347,-493.14,0.00018267,2]
[362074692,1747975846364,-430.0,0.00018269,2]
[362074693,1747975846376,-1376.1704289,0.00018322,2]
[362074694,1747975846388,-151.0,0.0001834,2]
[362074695,1747975846402,-151.0,0.0001834,2]
[362074696,1747975846419,-151.0,0.0001834,2]
[362074697,1747975846434,-436.083835,0.0001834,2]
[362074698,1747975846446,-436.083835,0.0001834,2]
[362074700,1747975846460,-151.0,0.0001834,2]
[362074701,1747975846474,-151.0,0.0001834,2]
[362074702,1747975846488,-151.0,0.0001834,2]
[362074703,1747975846501,-2614.9,0.00018344,2]
[362074704,1747975846513,-2614.9,0.00018344,2]
[362074705,1747975846526,-2614.9,0.00018344,2]
[362074706,1747975846540,-2614.9,0.00018344,2]
[362074707,1747975846554,-2614.9,0.00018344,2]
[362074708,1747975846567,-2614.8,0.00018344,2]
[362074709,1747975846581,-151.0,0.00018344,2]
[362074710,1747975846598,-151.0,0.00018344,2]
[362074711,1747975846612,-151.0,0.00018344,2]
[362074712,1747975846625,-436.083835,0.00018344,2]
[362074713,1747975846639,-436.083835,0.00018344,2]
[362074714,1747975846654,-151.0,0.00018344,2]
[362074715,1747975846668,-1664.11314,0.00018344,2]
[362074716,1747975846682,-1664.11314,0.00018344,2]
[362074717,1747975846696,-151.0,0.00018344,2]
[362074718,1747975846710,-151.0,0.00018344,2]
[362074719,1747975846723,-188.562393,0.00018344,2]
[362074720,1747975846737,-188.562393,0.00018344,2]
[362074721,1747975846754,-228.294513,0.00018344,2]
[362074722,1747975846767,-228.294513,0.00018344,2]
[362074723,1747975846780,-1226.370843,0.00018344,2]
[362074724,1747975846795,-1226.370843,0.00018344,2]
[362074725,1747975846809,-4333.335755,0.00018344,2]
[362074726,1747975846824,-4333.335755,0.00018344,2]
[362074727,1747975846837,-430.0,0.00018356,2]
[362074728,1747975846852,-479.79,0.00018356,2]
[362074729,1747975846866,-925.59,0.00018356,2]
[362074730,1747975846878,-430.0,0.00018356,2]
[362074731,1747975846891,-430.0,0.00018356,2]
[362074732,1747975846904,-430.0,0.00018356,2]
[362074733,1747975846919,-624.28,0.00018356,2]
[362074734,1747975846933,-1415.32,0.00018356,2]
[362074735,1747975846946,-430.0,0.00018358,2]
[362074736,1747975846960,-430.0,0.00018358,2]
[362074737,1747975846972,-430.0,0.00018358,2]
[362074738,1747975846985,-430.0,0.00018358,2]
[362074739,1747975846998,-430.0,0.00018358,2]
[362074740,1747975847012,-430.0,0.00018358,2]
[362074741,1747975847026,-430.0,0.00018358,2]
[362074742,1747975847040,-430.0,0.00018358,2]
[362074743,1747975847053,-430.0,0.00018358,2]
[362074744,1747975847068,-430.0,0.00018358,2]
[362074745,1747975847080,-1656.93,0.00018358,2]
[362074746,1747975847090,-430.0,0.00018358,2]
[362074747,1747975847099,-430.0,0.00018358,2]
[362074748,1747975847110,-430.0,0.00018358,2]
[362074749,1747975847121,-430.0,0.00018358,2]
[362074750,1747975847131,-430.0,0.00018358,2]
[362074751,1747975847140,-505.29735372,0.00018358,2]
[362074752,1747975847150,-430.0,0.00018358,2]
[362074753,1747975847161,-430.0,0.00018359,2]
[362074754,1747975847170,-430.0,0.00018359,2]
[362074755,1747975847180,-352.20381841,0.00018359,2]
[362074756,1747975847190,-430.0,0.00018359,2]
[362074757,1747975847200,-675.85,0.00018359,2]
[362074758,1747975847210,-151.619641,0.00018359,2]
[362074759,1747975847219,-430.0,0.00018359,2]
[362074760,1747975847229,-478.41,0.00018359,2]
[362074761,1747975847239,-430.0,0.00018359,2]
[362074762,1747975847249,-1032.14,0.00018359,2]
[362074763,1747975847258,-430.0,0.00018359,2]
[362074764,1747975847268,-430.0,0.00018359,2]
[362074765,1747975847278,-430.0,0.00018359,2]
[362074766,1747975847288,-430.0,0.00018359,2]
[362074767,1747975847512,-430.0,0.00018359,2]
[362074768,1747975847533,-430.0,0.00018359,2]
[362074769,1747975847546,-430.0,0.00018359,2]
[362074770,1747975847556,-616.62,0.00018359,2]
[362074771,1747975847567,-430.0,0.00018359,2]
[362074772,1747975847577,-430.0,0.00018359,2]
[362074773,1747975847587,-430.0,0.00018359,2]
[362074774,1747975847596,-648.92,0.00018359,2]
[362074775,1747975847606,-528.37,0.00018359,2]
[362074776,1747975847616,-430.0,0.00018359,2]
[362074777,1747975847625,-430.0,0.00018359,2]
[362074778,1747975847636,-752.58,0.00018359,2]
[362074779,1747975847645,-645.861742,0.00018359,2]
[362074780,1747975847655,-645.861748,0.00018359,2]
[362074781,1747975847665,-1013.01,0.00018359,2]
[362074782,1747975847675,-430.0,0.00018359,2]
[362074783,1747975847685,-430.0,0.00018359,2]
[362074784,1747975847694,-430.0,0.00018359,2]
[362074785,1747975847704,-507.04,0.00018359,2]
[362074786,1747975847714,-430.0,0.00018359,2]
[362074787,1747975847724,-430.0,0.00018359,2]
[362074788,1747975847734,-430.0,0.00018369,2]
[362074789,1747975847743,-430.0,0.00018369,2]
[362074790,1747975847755,-430.0,0.00018369,2]
[362074791,1747975847766,-430.0,0.00018369,2]
[362074792,1747975847775,-430.0,0.00018369,2]
[362074793,1747975847785,-498.39473656,0.00018369,2]
[362074794,1747975847795,-251.23553649,0.00018474,2]
[362074795,1747975847806,-694.37661371,0.00018508,2]
[362074796,1747975847815,-1000.0,0.00018508,2]
[362074797,1747975847825,-278.53472328,0.00018541,2]
[362074798,1747975847835,-1092.0,0.00018541,2]
[362074799,1747975847846,-430.0,0.00018541,2]
[362074800,1747975847856,-2139.84,0.00018541,2]
[362074801,1747975847866,-430.0,0.00018541,2]
[362074802,1747975847876,-430.0,0.00018541,2]
[362074803,1747975847887,-217.76,0.00018541,2]
[362074804,1747975847896,-493.14,0.00018541,2]
[362074805,1747975847906,-430.0,0.00018543,2]
[362074806,1747975847916,-1000.0,0.00018573,2]
[362074807,1747975847925,-151.0,0.00018614,2]
[362074808,1747975847935,-151.0,0.00018614,2]
[362074809,1747975847945,-188.562393,0.00018614,2]
[362074810,1747975847955,-188.562393,0.00018614,2]
[362074811,1747975847964,-228.294513,0.00018614,2]
[362074812,1747975847974,-228.294513,0.00018614,2]
[362074813,1747975847984,-1226.370843,0.00018614,2]
[362074814,1747975847993,-1226.370843,0.00018614,2]
[362074815,1747975848002,-4333.335755,0.00018614,2]
[362074816,1747975848012,-4333.335755,0.00018614,2]
[362074817,1747975848022,-151.0,0.00018616,2]
[362074818,1747975848032,-151.0,0.00018616,2]
[362074819,1747975848042,-151.0,0.00018616,2]
[362074820,1747975848051,-436.083835,0.00018616,2]
[362074821,1747975848061,-436.083835,0.00018616,2]
[362074822,1747975848072,-151.0,0.00018616,2]
[362074823,1747975848082,-1664.11314,0.00018616,2]
[362074824,1747975848092,-1664.11314,0.00018616,2]
[362074825,1747975848101,-151.0,0.00018616,2]
[362074826,1747975848113,-1189.44558785,0.00018616,2]
[362074827,1747975848126,-430.0,0.0001863,2]
[362074828,1747975848136,-479.79,0.0001863,2]
[362074829,1747975848146,-925.59,0.0001863,2]
[362074830,1747975848158,-430.0,0.0001863,2]
[362074831,1747975848168,-430.0,0.0001863,2]
[362074832,1747975848178,-432.42692126,0.0001863,2]
[362074833,1747975848188,-624.28,0.0001863,2]
[362074834,1747975848198,-1415.32,0.0001863,2]
[362074835,1747975848207,-430.0,0.00018632,2]
[362074836,1747975848218,-430.0,0.00018632,2]
[362074837,1747975848227,-430.0,0.00018632,2]
[362074838,1747975848237,-430.0,0.00018632,2]
[362074839,1747975848246,-277.99,0.00018632,2]
[362074840,1747975848256,-430.0,0.00018632,2]
[362074841,1747975848265,-511.349383,0.00018632,2]
[362074842,1747975848275,-430.0,0.00018632,2]
[362074843,1747975848284,-430.0,0.00018632,2]
[362074844,1747975848295,-430.0,0.00018632,2]
[362074845,1747975848304,-1656.93,0.00018632,2]
[362074846,1747975848315,-430.0,0.00018632,2]
[362074847,1747975848325,-430.0,0.00018632,2]
[362074848,1747975848334,-430.0,0.00018632,2]
[362074849,1747975848344,-481.67708032,0.00018632,2]
[362074850,1747975848354,-430.0,0.00018632,2]
[362074851,1747975848364,-430.0,0.00018632,2]
[362074852,1747975848374,-415.5241576,0.00018633,2]
[362074853,1747975848384,-430.0,0.00018633,2]
[362074854,1747975848393,-675.85,0.00018633,2]
[362074855,1747975848403,-430.0,0.00018633,2]
[362074856,1747975848412,-478.41,0.00018633,2]
[362074857,1747975848422,-430.0,0.00018633,2]
[362074858,1747975848432,-1032.14,0.00018633,2]
[362074859,1747975848442,-430.0,0.00018633,2]
[362074860,1747975848452,-430.0,0.00018633,2]
[362074861,1747975848462,-430.0,0.00018633,2]
[362074862,1747975848471,-280.65396975,0.00018633,2]
[362074863,1747975848481,-430.0,0.00018633,2]
[362074864,1747975848491,-430.0,0.00018633,2]
[362074865,1747975848501,-430.0,0.00018633,2]
[362074866,1747975848511,-616.62,0.00018633,2]
[362074867,1747975848521,-430.0,0.00018633,2]
[362074868,1747975848531,-566.27510713,0.00018633,2]
[362074869,1747975848541,-648.92,0.00018633,2]
[362074870,1747975848551,-528.37,0.00018633,2]
[362074871,1747975848561,-430.0,0.00018633,2]
[362074872,1747975848572,-430.0,0.00018633,2]
[362074873,1747975848583,-752.58,0.00018633,2]
[362074874,1747975848593,-1013.01,0.00018633,2]
[362074875,1747975848603,-305.89976859,0.00018633,2]
[362074876,1747975848613,-430.0,0.00018633,2]
[362074877,1747975848622,-430.0,0.00018633,2]
[362074878,1747975848633,-507.04,0.00018633,2]
[362074879,1747975848642,-430.0,0.00018633,2]
[362074880,1747975848653,-430.0,0.00018633,2]
[362074881,1747975848662,-559.60182779,0.00018643,2]
[362074882,1747975848673,-430.0,0.00018643,2]
[362074883,1747975848683,-430.0,0.00018643,2]
[362074884,1747975848693,-500.0,0.00018697,2]
[362074885,1747975848703,-500.0,0.00018729,2]
[362074886,1747975848714,-1000.0,0.00018754,2]
[362074887,1747975848724,-1376.1704289,0.000188,2]
[362074888,1747975848734,-1092.0,0.00018815,2]
[362074889,1747975848745,-227.38021921,0.00018815,2]
[362074890,1747975848760,-2139.84,0.00018815,2]
[362074891,1747975848770,-430.0,0.00018815,2]
[362074892,1747975848781,-430.0,0.00018815,2]
[362074893,1747975848790,-493.14,0.00018815,2]
[362074894,1747975848800,-430.0,0.00018817,2]
[362074895,1747975848810,-1226.370843,0.00018833,2]
[362074896,1747975848824,-1226.37083692,0.00018833,2]
[362074897,1747975848835,-151.0,0.00018888,2]
[362074898,1747975848845,-151.0,0.00018888,2]
[362074899,1747975848855,-151.0,0.00018888,2]
[362074900,1747975848865,-188.562393,0.00018888,2]
[362074901,1747975848875,-188.562386,0.00018888,2]
[362074902,1747975848885,-204.233227,0.00018889,2]
[362074903,1747975848895,-228.294513,0.0001889,2]
[362074904,1747975848905,-228.294513,0.0001889,2]
[362074905,1747975848915,-4333.335755,0.0001889,2]
[362074906,1747975848924,-4333.335755,0.0001889,2]
[362074907,1747975848935,-1478.44330457,0.000189,2]
[362074908,1747975848945,-8397.26544858,0.000189,2]
[362074909,1747975848956,-8397.26544843,0.000189,2]
[362074910,1747975848966,-8397.26544843,0.000189,2]
[362074911,1747975848976,-8397.26544843,0.000189,2]
[362074912,1747975848986,-8397.26544843,0.000189,2]
[362074913,1747975848997,-8397.26544843,0.000189,2]
[362074914,1747975849007,-8397.26544843,0.000189,2]
[362074915,1747975849017,-8397.26544843,0.000189,2]
[362074916,1747975849027,-430.0,0.00018904,2]
[362074917,1747975849038,-479.79,0.00018904,2]
[362074918,1747975849047,-925.59,0.00018904,2]
[362074919,1747975849058,-430.0,0.00018904,2]
[362074920,1747975849069,-304.38263381,0.00018904,2]
[362074921,1747975849079,-624.28,0.00018904,2]
[362074922,1747975849088,-1415.32,0.00018904,2]
[362074923,1747975849098,-587.0,0.00018905,2]
[362074924,1747975849108,-180.0,0.00018905,2]
[362074925,1747975849118,-256.0,0.00018905,2]
[362074926,1747975849127,-430.0,0.00018906,2]
[362074927,1747975849137,-217.41110893,0.00018906,2]
[362074928,1747975849147,-430.0,0.00018906,2]
[362074929,1747975849157,-430.0,0.00018906,2]
[362074930,1747975849166,-430.0,0.00018906,2]
[362074931,1747975849176,-430.0,0.00018906,2]
[362074932,1747975849186,-430.0,0.00018906,2]
[362074933,1747975849195,-430.0,0.00018906,2]
[362074934,1747975849206,-1656.93,0.00018906,2]
[362074935,1747975849215,-430.0,0.00018906,2]
[362074936,1747975849225,-430.0,0.00018906,2]
[362074937,1747975849235,-430.0,0.00018906,2]
[362074938,1747975849246,-430.0,0.00018906,2]
[362074939,1747975849256,-216.57937885,0.00018906,2]
[362074940,1747975849265,-430.0,0.00018907,2]
[362074941,1747975849275,-675.85,0.00018907,2]
[362074942,1747975849285,-530.84961686,0.00018907,2]
[362074943,1747975849295,-478.41,0.00018907,2]
[362074944,1747975849304,-430.0,0.00018907,2]
[362074945,1747975849316,-1032.14,0.00018907,2]
[362074946,1747975849326,-430.0,0.00018907,2]
[362074947,1747975849336,-430.0,0.00018907,2]
[362074948,1747975849345,-450.07222336,0.00018907,2]
[362074949,1747975849355,-430.0,0.00018907,2]
[362074950,1747975849364,-430.0,0.00018907,2]
[362074951,1747975849374,-430.0,0.00018907,2]
[362074952,1747975849383,-616.62,0.00018907,2]
[362074953,1747975849393,-469.72961067,0.00018907,2]
[362074954,1747975849403,-648.92,0.00018907,2]
[362074955,1747975849413,-528.37,0.00018907,2]
[362074956,1747975849422,-430.0,0.00018907,2]
[362074957,1747975849431,-430.0,0.00018907,2]
[362074958,1747975849441,-752.58,0.00018907,2]
[362074959,1747975849451,-1013.01,0.00018907,2]
[362074960,1747975849460,-430.0,0.00018907,2]
[362074961,1747975849469,-430.0,0.00018907,2]
[362074962,1747975849478,-507.04,0.00018907,2]
[362074963,1747975849489,-430.0,0.00018907,2]
[362074964,1747975849498,-1664.11314,0.00018916,2]
[362074965,1747975849508,-1664.11314,0.00018916,2]
[362074966,1747975849517,-427.00307512,0.00018917,2]
[362074967,1747975849526,-430.0,0.00018917,2]
[362074968,1747975849536,-894.64583333,0.00018937,2]
[362074969,1747975849546,-160.0,0.00018937,2]
[362074970,1747975849556,-160.0,0.00018937,2]
[362074971,1747975849566,-160.0,0.00018937,2]
[362074972,1747975849576,-422.85710789,0.00018937,2]
[362074973,1747975849586,-212.48480548,0.00018937,2]
[362074974,1747975849596,-160.0,0.00018937,2]
[362074975,1747975849606,-12647.66147447,0.00018937,2]
[362074976,1747975849616,-160.0,0.00018937,2]
[362074977,1747975849625,-160.0,0.00018937,2]
[362074978,1747975849635,-314.57823366,0.00018937,2]
[362074979,1747975849645,-160.0,0.00018938,2]
[362074980,1747975849655,-160.0,0.00018938,2]
[362074981,1747975849665,-151.0,0.00018951,2]
[362074982,1747975849675,-265.273425,0.00018951,2]
[362074983,1747975849685,-151.0,0.00018951,2]
[362074984,1747975849694,-436.083835,0.00018951,2]
[362074985,1747975849705,-436.083835,0.00018951,2]
[362074986,1747975849714,-151.0,0.00018951,2]
[362074987,1747975849724,-151.0,0.00018951,2]
[362074988,1747975849734,-1700.0,0.00018972,2]
[362074989,1747975849744,-151.0,0.00019,2]
[362074990,1747975849759,-151.0,0.00019,2]
[362074991,1747975849769,-154.236561,0.00019,2]
[362074992,1747975849780,-154.236561,0.00019,2]
[362074993,1747975849789,-436.083835,0.00019,2]
[362074994,1747975849800,-436.083835,0.00019,2]
[362074995,1747975849810,-280.971352,0.00019,2]
[362074996,1747975849822,-1664.11314,0.00019,2]
[362074997,1747975849833,-1664.11314,0.00019,2]
[362074998,1747975849842,-151.0,0.00019,2]
[362074999,1747975849851,-151.0,0.00019,2]
[362075000,1747975849861,-352.227412,0.00019,2]
[362075001,1747975849871,-352.227412,0.00019,2]
[362075002,1747975849880,-151.0,0.00019,2]
[362075003,1747975849889,-228.294513,0.00019,2]
[362075004,1747975849899,-228.294513,0.00019,2]
[362075005,1747975849908,-228.294513,0.00019,2]
[362075006,1747975849918,-228.294521,0.00019,2]
[362075007,1747975849928,-4333.335755,0.00019,2]
[362075008,1747975849938,-4333.335755,0.00019,2]
[362075009,1747975849948,-4333.335755,0.00019,2]
[362075010,1747975849957,-4333.335758,0.00019,2]
[362075011,1747975849968,-31.10234992,0.00019012,2]
[362075012,1747975850158,-314.57823366,0.00016897,3]
[362075013,1747975850168,-492.23377118,0.00017537,3]
[362075014,1747975850607,-199.61622882,0.00017537,3]
[362075015,1747975850617,-176.52296958,0.00017788,3]
[362075016,1747975850662,-718.12286375,0.00017788,3]
[362075017,1747975850672,-314.57823366,0.00017788,3]
[362075018,1747975850682,-296.20185685,0.00019012,2]
[362075019,1747975850871,-172.69579323,0.00019012,2]
[362075020,1747975850882,-150.43217951,0.00019056,2]
[362075021,1747975850893,-252.94573394,0.00019079,2]
[362075022,1747975850904,-1092.0,0.00019089,2]
[362075023,1747975850913,-2139.84,0.00019089,2]
[362075024,1747975850923,-430.0,0.00019089,2]
[362075025,1747975850933,-430.0,0.00019089,2]
[362075026,1747975850943,-493.14,0.00019089,2]
[362075027,1747975850952,-430.0,0.00019091,2]
[362075028,1747975850962,-1200.0,0.00019096,2]
[362075029,1747975850972,-4274.95271075,0.00019107,2]
[362075030,1747975990125,402.810477,0.00013699,2]
[362075034,1747976417247,-360.2060169,0.00015157,2]
[362075035,1747976421890,-200.0,0.00015157,2]
[362075036,1747976425728,-319.60498314,0.00015157,2]
[362075039,1747976603793,5000.0,0.00015,2]
[362075047,1747976792797,195.0,0.00015,3]
[362075069,1747976807278,5000.0,0.00015,2]
[362075071,1747976823209,5000.0,0.00015,2]
[362075080,1747976838456,5000.0,0.00015,2]
[362075091,1747976854254,5000.0,0.00015,2]
[362075092,1747976870145,5000.0,0.00015,2]
[362075093,1747976887061,5000.0,0.00015,2]
[362075094,1747976904275,5000.0,0.00015,2]
[362075095,1747976916049,195.0,0.00015,3]
[362075096,1747976919443,4084.77822515,0.00015,2]
[362075107,1747977014068,2000.22923541,0.0002,120]
[362075154,1747977032402,-3244.2328887,0.00015168,2]
[362075157,1747977032414,-300.0,0.00015257,2]
[362075160,1747977032423,-300.0,0.00015258,2]
[362075163,1747977032433,-300.0,0.00015258,2]
[362075166,1747977032443,-1200.0,0.00015258,2]
[362075168,1747977032452,-300.0,0.00015258,2]
[362075170,1747977032462,-8931.46378453,0.00015259,2]
[362075218,1747977038198,-300.0,0.00015258,2]
[362075219,1747977038207,-467.5339905,0.00015259,2]
[362075220,1747977038220,-15501.00222497,0.00015259,2]
[362075221,1747977038230,-183.0624223,0.00015323,2]
[362075222,1747977038239,-382.970744,0.00015621,2]
[362075223,1747977038249,-908.434769,0.00015829,2]
[362075224,1747977038258,-2405.3853835,0.00015981,2]
[362075225,1747977038268,-500.0,0.00016437,2]
[362075226,1747977038277,-500.0,0.00016437,2]
[362075227,1747977038287,-291.02835955,0.00016437,2]
[362075228,1747977038296,-500.0,0.00016437,2]
[362075229,1747977038305,-500.0,0.00016437,2]
[362075230,1747977038314,-265.06118569,0.00016437,2]
[362075231,1747977038323,-500.0,0.00016437,2]
[362075232,1747977038332,-500.0,0.00016437,2]
[362075233,1747977038342,-430.0,0.00016438,2]
[362075234,1747977038351,-430.0,0.00016438,2]
[362075235,1747977038361,-430.0,0.00016438,2]
[362075236,1747977038371,-430.0,0.00016438,2]
[362075237,1747977038382,-431.29853876,0.00016438,2]
[362075238,1747977038391,-351.85658622,0.00016438,2]
[362075239,1747977038401,-430.0,0.00016438,2]
[362075240,1747977038410,-401.03611891,0.00016438,2]
[362075241,1747977038419,-400.0,0.00016438,2]
[362075242,1747977038429,-430.0,0.00016438,2]
[362075243,1747977038438,-433.59515271,0.00016438,2]
[362075244,1747977038448,-437.13472448,0.00016438,2]
[362075245,1747977038458,-435.76093242,0.00016438,2]
[362075246,1747977038469,-435.94716025,0.00016438,2]
[362075247,1747977038478,-430.0,0.00016438,2]
[362075248,1747977038487,-430.0,0.00016438,2]
[362075249,1747977038497,-430.0,0.00016438,2]
[362075250,1747977038506,-346.56852429,0.00016438,2]
[362075251,1747977038516,-432.46175018,0.00016438,2]
[362075252,1747977038526,-430.0,0.00016438,2]
[362075253,1747977038535,-156.13981294,0.00016438,2]
[362075254,1747977038544,-345.69339117,0.00016438,2]
[362075255,1747977038554,-430.0,0.00016438,2]
[362075256,1747977038563,-430.0,0.00016438,2]
[362075257,1747977038573,-439.10851334,0.00016438,2]
[362075258,1747977038583,-430.0,0.00016438,2]